Cogmind - Beta 17 @@@ ROGUE MODE // 2026.07.30 @ 00:17:23 Player: aperiodic Result: Destroyed by Y-45 Defender with Beam Rifle Performance ------------- Evolutions (2) 1000 Regions Visited (3) 600 Robots Destroyed (42) 210 Value Destroyed (1079) 1079 Prototype IDs (0) 0 Alien Tech Used (0) 0 Bonus (0) 0 TOTAL SCORE: 2889 Bonus ------- None Cogmind --------- Core Integrity 0/550 Matter 279/300 Energy 69/100 System Corruption 0% Temperature Cool (9) Movement Core (700) Ox13 Location -8/Materials Parts ------- > --- POWER (1) -------- (None) > --- PROPULSION (3) --- (None) > --- UTILITY (5) ------ High-capacity Storage Unit > --- WEAPON (2) ------- Dirty Datajack > --- INVENTORY (20) --- Flight Unit Flightbrick Medium Storage Unit High-capacity Matter Pod (200) Particle Gun Subdweller Beam Cannon Grenade Launcher Multitool Peak State ------------ > --- POWER ------------ Subdweller Power Source > --- PROPULSION ------- Light Treads Spiked Treads Wheel > --- UTILITY ---------- High-capacity Storage Unit Structural Scanner Seismic Detector Light Armor Plating Makeshift Kinetic Plating > --- WEAPON ----------- Subdweller Beam Cannon Subdweller Beam Cannon > --- INVENTORY -------- Wheel Wheel Flight Unit Flightbrick Medium Storage Unit High-capacity Matter Pod Subdweller Beam Cannon Light Assault Rifle Grenade Launcher Dirty Datajack Multitool Makeshift Sword [Rating: 23] Favorites ----------- Power Subdweller Power Source Engine Subdweller Power Source Propulsion Wheel Treads Light Treads Wheel Wheel Utility Seismic Detector Device Seismic Detector Storage High-capacity Storage Unit Protection Light Armor Plating Weapon Subdweller Beam Cannon Energy Gun Small Laser Energy Cannon Subdweller Beam Cannon Ballistic Gun Assault Rifle Launcher Grenade Launcher Special Weapon Mining Laser Slashing Weapon Makeshift Sword Special Melee Weapon Dirty Datajack Build | -11 -10 -10 -8 ------- Run | Yrd Mat Sub Mat Slots Evolved 4 | . . . 4 Power . | . . . . Propulsion 1 | . . . 1 Utility 3 | . . . 3 Weapon . | . . . . Parts Attached 42 | 10 8 19 5 Power 8 | 1 1 6 . Engine 8 | 1 1 6 . Core . | . . . . Reactor . | . . . . Propulsion 11 | 5 3 2 1 Treads 4 | 1 1 1 1 Leg . | . . . . Wheel 7 | 4 2 1 . Hover . | . . . . Flight . | . . . . Utility 8 | 2 2 4 . Device 2 | 1 . 1 . Storage 2 | 1 1 . . Processor . | . . . . Hackware . | . . . . Protection 4 | . 1 3 . Artifact . | . . . . Weapon 15 | 2 2 7 4 Energy Gun 3 | 2 . . 1 Energy Cannon 5 | . 1 4 . Ballistic Gun 3 | . 1 1 1 Ballistic Cannon . | . . . . Launcher 1 | . . . 1 Special Weapon 1 | . . 1 . Impact Weapon . | . . . . Slashing Weapon 1 | . . 1 . Piercing Weapon . | . . . . Special Melee Weapon 1 | . . . 1 Unidentified Prototypes . | . . . . Parts Lost 19 | . . 6 13 Power 3 | . . 2 1 Propulsion 6 | . . 1 5 Utility 6 | . . 2 4 Weapon 4 | . . 1 3 Highest Loss Streak 10 | . . 3 10 To Critical Strikes . | . . . . Average Backups 7 | 4 10 6 12 Power . | . . . . Propulsion 2 | 2 4 1 3 Utility 1 | . 1 1 2 Weapon 2 | 1 4 2 3 Tool/Special . | . . . . Unused Backups 12 | 1 2 4 5 Power . | . . . . Propulsion 6 | 1 1 2 2 Utility 3 | . . 1 2 Weapon 2 | . 1 1 . Tool/Special 1 | . . . 1 Average Slot Usage (%) 96 | . 100 97 78 Engine 13 | . 14 13 7 Treads 8 | . 15 5 8 Wheel 18 | . 12 21 12 Device 10 | . 11 10 13 Storage 5 | . 14 2 9 Protection 11 | . 2 14 10 Energy Gun 5 | . 22 . 1 Energy Cannon 14 | . 2 19 10 Ballistic Gun 3 | . 2 4 2 Special Weapon 2 | . . 2 . Slashing Weapon 1 | . . 1 2 Peak Build Rating 23 | 7 9 19 23 Average Rating 11 | 5 7 11 19 On Entrance 8 | . 7 9 19 Avg Prop Armor Cover (%) 4 | . . 4 3 Naked Turns . | . . . . Heaviest Build 73 | 12 51 68 73 Greatest Support 40 | 32 40 40 40 Greatest Overweight (x) 13 | 2 2 3 13 Average Overweight (x) . | . 1 . 2 Largest Inventory Capacity 20 | 8 20 20 20 Average Capacity 11 | 7 18 7 20 Most Carried 20 | 8 20 20 19 Average Carried 8 | 5 11 6 15 Final Capacity 20 | 8 20 20 20 Final Carried 20 | 8 20 19 11 Class Distribution -------------------- 64% | Scavenger-Mutant 35% | Mutant Dominant Class ---------------- Mutant | -10/Materials Scavenger-Mutant | -10/Subcaves Scavenger-Mutant | -8/Materials Resources | -11 -10 -10 -8 ----------- Run | Yrd Mat Sub Mat Matter Collected 1499 | 310 420 614 155 Remotely . | . . . . Salvage Created 1373 | 141 250 615 367 Parts 94 | 14 12 48 20 Haulers Intercepted 2 | . 1 . 1 Recyclers Shooed 1 | . 1 . . Parts Field Recycled . | . . . . Retrieved Matter . | . . . . Parts Self-Destructed 1 | . . 1 . Prevented . | . . . . Parts Restored . | . . . . Kills | -11 -10 -10 -8 ------- Run | Yrd Mat Sub Mat Combat Hostiles Destroyed 31 | . 8 14 9 Melee 3 | . . . 3 Guns 8 | . 7 1 . Cannons 16 | . . 13 3 AOE 3 | . . . 3 Classes Destroyed 10 | 3 4 2 1 Worker 1 | 1 . . . Builder 1 | . . . 1 Tunneler 4 | 4 . . . Hauler 2 | . 1 . 1 Recycler 1 | 1 . . . Watcher 2 | . 1 . 1 Swarmer 10 | . 6 . 4 Grunt 7 | . 2 . 5 Sentry 1 | . . 1 . Subdweller 13 | . . 13 . Best Kill Streak 4 | 3 3 3 4 Combat Bots Only 4 | . 3 3 4 Max Kills in Single Turn 3 | 1 1 1 3 Gunslinging . | . . . . Exploded 3 | . . . 3 Melee 1 | . . . 1 Uniques/NPCs Destroyed . | . . . . Combat | -11 -10 -10 -8 -------- Run | Yrd Mat Sub Mat Hostile Shots Fired 213 | . 22 50 141 Missed 55 | . 6 14 35 Hits 158 | . 16 36 106 Projectile 158 | . 16 36 106 Critical Strikes 5 | . . 2 3 Damage Taken 2714 | . 196 931 1587 Core 768 | . 52 159 557 Absorbed by Shields . | . . . . Ignored by Resistances 5 | . . . 5 Core Remaining (%) 57 | 100 . 15 . Volleys Fired 119 | 16 20 57 26 Largest 2 | 2 2 2 2 Hottest 160 | 90 90 160 160 Shots Fired 190 | 32 40 79 39 Gun 94 | 32 40 9 13 Cannon 83 | . . 58 25 Launcher 1 | . . . 1 Special 12 | . . 12 . Kinetic 13 | . . 9 4 Thermal 176 | 32 40 70 34 Explosive 1 | . . . 1 Electromagnetic . | . . . . Robot Hit Streak 45 | 7 10 45 5 Robot Miss Streak 3 | 3 2 1 3 Penetration Max . | . . . . Secondary Targets . | . . . . Shots Hit Robots 134 | 17 27 54 36 Core Hits 57 | 7 14 16 20 Critical Kills . | . . . . Critical Parts Destroyed . | . . . . Critical Strikes 3 | 1 2 . . Burn 3 | 1 2 . . Melee Attacks 29 | . . 1 28 Impact . | . . . . Slashing 28 | . . 1 27 Piercing 1 | . . . 1 Sneak Attacks 1 | . . . 1 Combat Hostiles 1 | . . . 1 Follow-up Attacks . | . . . . Damage Inflicted 2948 | 208 322 1317 1101 Guns 767 | 208 322 99 138 Cannons 1609 | . . 1218 391 Explosions 146 | . . . 146 Melee 426 | . . . 426 Ramming . | . . . . Kinetic 131 | . . 99 32 Thermal 2245 | 208 322 1218 497 Explosive 146 | . . . 146 Electromagnetic . | . . . . Impact . | . . . . Slashing 423 | . . . 423 Piercing 3 | . . . 3 Highest Corruption 1 | . 1 1 . Average Corruption 1 | . 1 1 . Corruption Purged . | . . . . Corruption Blocked . | . . . . Effects 24 | . . 24 . Message Errors 5 | . . 5 . Matter Fused 5 | . . 5 . Heat Flow Errors 2 | . . 2 . Energy Discharges 4 | . . 4 . Parts Fused 1 | . . 1 . Data Loss (minor) 5 | . . 5 . Data Loss (major) 1 | . . 1 . Alerts 1 | . . 1 . Overload Shots . | . . . . Overflow Damage . | . . . . Projectiles . | . . . . Explosions . | . . . . Melee . | . . . . Knockbacks . | . . . . Impact . | . . . . Kinetic . | . . . . Secondary . | . . . . Self-Inflicted Damage 25 | . . . 25 Shots 1 | . . . 1 Rammed . | . . . . Targets Rammed . | . . . . Kicked . | . . . . Crushed . | . . . . Highest Temperature 558 | 180 258 558 407 Average Temperature 114 | 78 77 129 142 Received Heat Transfer 1549 | . 57 862 630 Effects 11 | . . 4 7 Shutdowns 2 | . . . 2 Energy Bleed 2 | . . . 2 Interference 4 | . . 3 1 Matter Decay 1 | . . . 1 Short Circuit 2 | . . 1 1 Siege Activations . | . . . . Martial Activations . | . . . . Shielding Activations . | . . . . Robots Disrupted . | . . . . Combat Hostiles . | . . . . Robots Corrupted . | . . . . Combat Hostiles . | . . . . Parts Fried . | . . . . Impact Corruptions . | . . . . Robots Melted 1 | . 1 . . Combat Hostiles 1 | . 1 . . Parts Melted 9 | 1 4 4 . Heat Transferred 4138 | 643 979 1739 777 Parts Sabotaged . | . . . . Parts Stolen . | . . . . Parts Stripped . | . . . . Power Chain Reactions . | . . . . Alert | -11 -10 -10 -8 ------- Run | Yrd Mat Sub Mat Maximum Alert Level . | . . . . Low Security (%) 100 | 100 100 . 100 Level 1 . | . . . . Level 2 . | . . . . Level 3 . | . . . . Level 4 . | . . . . Level 5 . | . . . . High Security . | . . . . Max Security . | . . . . Peak Influence 100 | 10 90 . 100 Initial . | . . . . Average 24 | 2 19 . 47 Influence Increases 533 | 30 234 20 249 Destroy 0b10 Robot/C 360 | . 160 20 180 Destroy 0b10 Robot/NC 55 | 30 10 . 15 Destroy Leader 58 | . 34 . 24 Disable Machine 15 | . . . 15 Destroy Structure 15 | . . . 15 Lose Combat Pursuer 30 | . 30 . . Influence Decreases 533 | 30 234 20 249 Time Decay 424 | 30 234 20 140 Lost Part 109 | . . . 109 Squads Dispatched 3 | . 2 . 1 Investigation 1 | . 1 . . Extermination . | . . . . Reinforcement 2 | . 1 . 1 Assault . | . . . . Garrison . | . . . . Intercept . | . . . . Searches Triggered . | . . . . Construction Impeded . | . . . . Haulers Reinforced . | . . . . Active Scanning Responses . | . . . . Cargo Convoy Interrupts . | . . . . Stealth | -11 -10 -10 -8 --------- Run | Yrd Mat Sub Mat Distress Signals 3 | . 1 . 2 Communications Jammed . | . . . . Distress Signals . | . . . . Times Spotted 44 | . 12 14 18 Peak Tracking Total 5 | . 4 3 5 Tactical Retreats 2 | . 2 . . Traps | -11 -10 -10 -8 ------- Run | Yrd Mat Sub Mat Traps Triggered 2 | . 2 . . Indirectly . | . . . . Trap Hack Attempts . | . . . . Triggered . | . . . . Disarmed . | . . . . Reprogrammed . | . . . . Reused . | . . . . Traps Extracted . | . . . . Installed . | . . . . Triggered . | . . . . Machines | -11 -10 -10 -8 ---------- Run | Yrd Mat Sub Mat Machines Disabled 1 | . . . 1 Max in Single Turn 1 | . . . 1 Machines Repaired . | . . . . Machines Dismantled . | . . . . Machines Sabotaged . | . . . . Overloaded Fab Kills . | . . . . Hacking | -11 -10 -10 -8 --------- Run | Yrd Mat Sub Mat Machines Accessed . | . . . . Terminals . | . . . . Fabricators . | . . . . Repair Stations . | . . . . Recycling Units . | . . . . Scanalyzers . | . . . . Garrison Access . | . . . . Total Hacks . | . . . . Successful . | . . . . Failed . | . . . . Catastrophic . | . . . . Database Lockouts . | . . . . Manual . | . . . . Terminals . | . . . . Fabricators . | . . . . Repair Stations . | . . . . Recycling Units . | . . . . Scanalyzers . | . . . . Garrison Access . | . . . . Terminal Hacks . | . . . . Fabricator Hacks . | . . . . Repair Station Hacks . | . . . . Recycling Unit Hacks . | . . . . Scanalyzer . | . . . . Garrison Access Hacks . | . . . . Unauthorized Hacks . | . . . . Terminals . | . . . . Fabricators . | . . . . Repair Stations . | . . . . Recycling Units . | . . . . Scanalyzers . | . . . . Garrison Access . | . . . . Data Cores Recovered . | . . . . Used . | . . . . Hacking Detections . | . . . . Full Trace Events . | . . . . Feedback Events . | . . . . Feedback Blocked . | . . . . Robot Schematics Acquired . | . . . . Robots Built . | . . . . Authchips . | . . . . Time . | . . . . Total Robot Build Rating . | . . . . Part Schematics Acquired . | . . . . Parts Built . | . . . . Authchips . | . . . . Time . | . . . . Total Part Build Rating . | . . . . Part Studies Acquired . | . . . . Parts Repaired . | . . . . Time . | . . . . Parts Recycled . | . . . . Recycled Matter . | . . . . Retrieved Matter . | . . . . Retrieved Components . | . . . . Parts Scanalyzed . | . . . . Part Schematics Acquired . | . . . . Parts Damaged . | . . . . Bothacking | -11 -10 -10 -8 ------------ Run | Yrd Mat Sub Mat Used RIF Installer . | . . . . Robots Hacked . | . . . . Non-combat . | . . . . Combat . | . . . . Robot Hacks Applied . | . . . . Relay Couplers Released . | . . . . Fabnet Peak Effective % . | . . . . Robots Rewired . | . . . . Allies Hacked . | . . . . Hacks Repelled . | . . . . Allies | -11 -10 -10 -8 -------- Run | Yrd Mat Sub Mat Total Allies 1 | . . . 1 Largest Group 1 | . . . 1 Highest-Rated Group 16 | . . . 16 Highest-Rated Ally 16 | . . . 16 Total Orders . | . . . . Ally Attacks 4 | . . . 4 Total Damage 66 | . . . 66 Kills . | . . . . Allies Corrupted . | . . . . Allies Melted . | . . . . Intel | -11 -10 -10 -8 ------- Run | Yrd Mat Sub Mat Active Infowar (turns) 3206 | 24 811 2107 264 Structural 657 | . . 403 254 Seismic 2803 | 24 811 1704 264 Robot Analysis Total . | . . . . Derelict Logs Recovered 1 | . . 1 . Drone Launches . | . . . . Drone Recoveries . | . . . . Exploration | -11 -10 -10 -8 ------------- Run | Yrd Mat Sub Mat Turns Passed 4352 | 155 1020 2837 340 Spaces Moved 2768 | 88 368 2221 91 Core 5 | 4 . . 1 Treads 310 | . 29 246 35 Legs . | . . . . Wheels 2453 | 84 339 1975 55 Hover . | . . . . Flight . | . . . . Fastest Speed 50 | 50 80 80 110 Average Speed 109 | 88 111 106 177 Slowest Speed 700 | 150 240 240 700 Overloaded Moves . | . . . . Propulsion Burnouts . | . . . . Robots Hopped . | . . . . Potential Cave-ins . | . . . . Cave-ins Triggered . | . . . . Exploration Rate (%) 31 | 4 53 51 16 Regions Visited 3 Branch Regions 1 Pre-discovered Areas 1 | . . 1 . Known Exits Taken . | . . . . Unknown Exits Taken 3 | 1 1 1 . Scrap Searched 4 | . . 4 . Spaces Dug 2 | . . 2 . Terrain Destroyed 21 | . . 5 16 Melee . | . . . . Projectile 14 | . . 5 9 AOE 7 | . . . 7 Terrain Rammed . | . . . . Walls Destroyed . | . . . . Machines Disabled . | . . . . Actions | -11 -10 -10 -8 --------- Run | Yrd Mat Sub Mat Total 3836 | 132 934 2572 198 Wait 731 | 6 497 196 32 Move 2765 | 87 367 2220 91 Hop . | . . . . Pick Up 53 | 9 18 26 . Fast Attach 19 | 8 . 10 1 Attach 15 | . 1 5 9 Detach 5 | 1 1 2 1 Swap 67 | 3 23 32 9 Drop 33 | 2 7 23 1 Fire 119 | 16 20 57 26 Melee 29 | . . 1 28 Ram . | . . . . Kick . | . . . . Crush . | . . . . Escape Stasis . | . . . . Rewire . | . . . . Trap . | . . . . Miscellaneous . | . . . . Route ------- -11/Scrapyard -10/Materials (discovered 3 exits: [*Mat x2] / [*Sub]) -10/Subcaves (discovered 2 exits: [*Mat x2]) -8/Materials (discovered 2 exits: Fac x2) History --------- Turn | Location | Event 26 | -11/Scrapyard | Discovered new exit (range 16) 156 | -11/Scrapyard | Entered Materials 280 | -10/Materials | Discovered new exit (range 10) 325 | -10/Materials | Build established: Mutant 656 | -10/Materials | Derelicts attacked the area 751 | -10/Materials | Discovered new exit (range 7) 1101 | -10/Materials | Discovered new exit (range 16) 1176 | -10/Materials | Entered Subcaves 1177 | -10/Subcaves | Approached by a straggling Scientist 1178 | -10/Subcaves | A swath of the cavern ceiling suddenly collapsed 1586 | -10/Subcaves | Ambushed by Subdweller buried in earth 1624 | -10/Subcaves | Build established: Scavenger-Mutant 1825 | -10/Subcaves | Shifting Twisted Machinery released Unknown Treads 1830 | -10/Subcaves | Discovered new exit (range 13) 1835 | -10/Subcaves | Shifting Twisted Machinery released Flamer 2083 | -10/Subcaves | Learned location of Zion (-6) 2083 | -10/Subcaves | Met a Zionite searching for "candidates" 2115 | -10/Subcaves | Learned location of 2 exits from Materials 2118 | -10/Subcaves | Discovered new exit (range 12) 2591 | -10/Subcaves | Disturbed a concealed Subdweller 2635 | -10/Subcaves | Lost 3 parts (1n1u1w) 2823 | -10/Subcaves | Core integrity fell below 50% 3526 | -10/Subcaves | A Subdweller sparked back to life 3536 | -10/Subcaves | Core integrity fell below 20% 3555 | -10/Subcaves | Found Prototype Flight Unit 4013 | -10/Subcaves | Entered Materials 4013 | -8/Materials | Evolved 4 slots: Propulsion x1, Utility x3 4014 | -8/Materials | Identified exit to Factory 4272 | -8/Materials | Lost 3 parts (1n2u) 4326 | -8/Materials | Core integrity fell below 50% 4348 | -8/Materials | Core integrity fell below 20% 4353 | -8/Materials | Destroyed by Y-45 Defender with Beam Rifle Last Messages --------------- 04311_ Lgt. Assault Rifle destroyed. 04314_ Wheel destroyed. 04314_ Critical hit (Burn: +37). 04320_ Slug penetrates Wall. 04321_ Spk. Treads destroyed. 04323_ Penetrated by Slug. 04325_ G-47 Trooper destroyed. 04327_ Mak. Sword destroyed. 04327_ T-07 Excavator is excavating. 04338_ Penetrated by Slug. 04341_ Slug penetrates Wall. 04342_ K-01 Serf collects debris. 04342_ Sub. Beam Cannon shoots sparks and powers down. 04342_ Wheel destroyed. 04344_ Penetrated by Slug. 04344_ Broken Sub. Beam Cannon destroyed. 04345_ Splicing G-47 Trooper... Rewriting IFF filter. 04350_ Penetrated by Slug. Map ----- +----------------------------------------------------+ | ??????????????? # ##????????????????????????????? | | ??????????????? # ##????????????????????????????? | | ??????????????? # ########### ????????????????? | | ??????????????? # ##############????????????????? | | ??????????????? # # ! ##????????????????? | | ??????????? ??? # # ##????????????????? | | ????????? # ""? # # ????????????????????? | | ????????? # """ # #] """ "?????????????????????? | | ????????? # """ # # """ ""? # ????????????????? | | ????????? # """ / + """ """ # ????????????????? | | ????????? # # # #"????????????????? | | ?? ####### ^#############"????????????????? | | ??###+########## ############"????????????????? | | ?? # ##???????????????????????????? | | ?? # = ##???????????????????????????? | | ? + ###% [[[ ! [ ##???????????????????????????? | | ?? # ###* [[! [ [ #########????????????????????? | | ??????### [[! =[[ #########????????????????????? | | ??????### =*%! ##????????????????????? | | ???????## ! %*!=##### ##????????????????????? | | ???????######+#####/###### ##????????????????????? | | ???????# # %%[= [##g##????????????????????? | | ???????????? ? #= =""" # #######??????????????? | | ???????????" ? # """ %+* uk #?????????????? | | ?????????????? # [ """ #hY #####????????????????? | | ?????????????? # #@g#####?????????????????? | | ?????????????? # """ # #?????????????????? | | ?????????????? # """ # #?????????????????? | | ?????????????? # """ # #?????????????????? | | ?????????????? # !#^ !!#?????????????????? | | ?????????????? ########## !]#?????????????????? | | ?????????????? ######???# #?????????????????? | | ????????????????????????########?????????????????? | | ?????????????????????????????????????????????????? | | ?????????????????????????????????????????????????? | | ?????????????????????????????????????????????????? | | ?????????????????????????????????????????????????? | | ?????????????????????????????????????????????????? | | | | | | | | | | | | | | | | | | | | | | | | | +----------------------------------------------------+ Best States ------------- Heat Dissipation 31 Energy Generation 15 Energy Capacity 200 Matter Stores 300 Matter Capacity 300 Sight Range 16 Terrain Scan Density 10 Armor Coverage 300 Resistance: KI 10 Evasion (%) 44 Recoil Reduction 2 Item Schematics ----------------- None Robot Schematics ------------------ None Fabricated ------------ Nothing Repaired ---------- Nothing Studied --------- None Alien Tech Used ----------------- None Achievements -------------- None Challenges ------------ None Game ------ Seed TeslaDroneMicrothruster Manual? 0 Play Time 00:47:52 Cumulative 781.6 hours Start 2026.07.29 @ 22:30:09 End 2026.07.30 @ 00:17:23 Sessions 3 Manual Loads 0 Difficulty Rogue Special Mode None Game No. 286 Rogue 282 Adventurer 4 Explorer 0 Win Type - Total 21 Types 9/2/6/0/0/0/2/2/0/0 Lore% 89 Gallery% 77 Achievement% 61 Wizard Run 0 Options --------- Layout 1 ASCII 0 Keyboard 0 Movement Arrows Keybinds 0 Fullscreen 1 Font 40/SmallcapsGlow Map View 50x40 Zoom Use 0% Tactical HUD 1 Map Filters NONE Filters NONE Steam 1 RUN: ac57be2a-352b-4d13-b81e-f79d02f2786f